Cogmind - Beta 15 @@@ ROGUE MODE // 2025.08.13 @ 09:12:27 Player: Zen9890 Result: Self-destructed Performance ------------- Evolutions (2) 1000 Regions Visited (3) 600 Robots Destroyed (42) 210 Value Destroyed (903) 903 Prototype IDs (4) 80 Alien Tech Used (0) 0 Bonus (0) 0 TOTAL SCORE: 2793 Bonus ------- None Cogmind --------- Core Integrity 222/550 Matter 285/300 Energy 55/100 System Corruption 0% Temperature Cool (43) Movement Treading (240) Ox1 Location -8/Materials Parts ------- > --- POWER (1) -------- (None) > --- PROPULSION (3) --- Light Treads > --- UTILITY (5) ------ Large Storage Unit Signal Interpreter ECM Suite Recalibrator > --- WEAPON (2) ------- Particle Gun > --- INVENTORY (15) --- Aluminum Leg Medium Storage Unit Large Matter Pod (150) Melee Analysis Suite Recalibrator Mining Laser Peak State ------------ > --- POWER ------------ Light Nuclear Core > --- PROPULSION ------- Wheel Wheel > --- UTILITY ---------- Heat Sink Medium Storage Unit Targeting Computer ECM Suite > --- WEAPON ----------- Improved Medium Laser Improved Medium Laser > --- INVENTORY -------- Heavy Ion Engine Aluminum Leg Aluminum Leg Wheel Large Storage Unit Large Matter Pod Particle Gun Heavy Assault Rifle Light Cannon Mining Laser [Rating: 16] Favorites ----------- Power Ion Engine Engine Ion Engine Power Core Light Nuclear Core Propulsion Wheel Treads Light Treads Leg Aluminum Leg Wheel Wheel Utility Medium Storage Unit Device Heat Sink Storage Medium Storage Unit Processor Targeting Computer Protection Light Armor Plating Weapon Medium Laser Energy Gun Medium Laser Energy Cannon Particle Cannon Ballistic Gun Heavy Assault Rifle Special Weapon Mining Laser Special Melee Weapon Datajack Build | -11 -10 -9 -8 ------- Run | Yrd Mat Mat Mat Slots Evolved 4 | . . 2 2 Power . | . . . . Propulsion 1 | . . . 1 Utility 3 | . . 2 1 Weapon . | . . . . Parts Attached 44 | 8 8 18 10 Power 8 | 1 2 4 1 Engine 7 | 1 2 3 1 Core 1 | . . 1 . Reactor . | . . . . Propulsion 13 | 2 2 4 5 Treads 1 | . . . 1 Leg 3 | . . . 3 Wheel 9 | 2 2 4 1 Hover . | . . . . Flight . | . . . . Utility 13 | 3 2 5 3 Device 7 | 2 . 3 2 Storage 3 | 1 1 . 1 Processor 2 | . 1 1 . Hackware . | . . . . Protection 1 | . . 1 . Artifact . | . . . . Weapon 10 | 2 2 5 1 Energy Gun 6 | 2 . 3 1 Energy Cannon 1 | . . 1 . Ballistic Gun 1 | . . 1 . Ballistic Cannon . | . . . . Launcher . | . . . . Special Weapon 1 | . 1 . . Impact Weapon . | . . . . Slashing Weapon . | . . . . Piercing Weapon . | . . . . Special Melee Weapon 1 | . 1 . . Unidentified Prototypes 2 | . . 2 . Parts Lost 19 | . 2 2 15 Power 3 | . . . 3 Propulsion 7 | . 1 1 5 Utility 5 | . 1 1 3 Weapon 4 | . . . 4 Highest Loss Streak 6 | . 2 1 6 To Critical Strikes . | . . . . Average Backups 7 | 3 7 9 7 Power . | . 1 1 . Propulsion 2 | 1 2 3 1 Utility 2 | . 1 2 3 Weapon 2 | . 2 3 2 Tool/Special . | . . . . Unused Backups 13 | 2 6 3 2 Power 1 | . . 1 . Propulsion 2 | 2 . . . Utility 4 | . 2 . 2 Weapon 5 | . 3 2 . Tool/Special 1 | . 1 . . Average Slot Usage (%) 92 | . 98 98 72 Engine 8 | . 14 8 3 Core 2 | . . 2 3 Leg 1 | . . . 7 Wheel 19 | . 27 21 6 Device 16 | . 11 19 16 Storage 11 | . 14 11 9 Processor 7 | . 2 11 9 Energy Gun 18 | . 26 15 12 Energy Cannon 1 | . . . 3 Ballistic Gun 2 | . . 4 . Peak Build Rating 16 | 9 8 16 16 Average Rating 10 | 6 6 12 12 On Entrance 7 | . 7 8 13 Naked Turns . | . . . . Heaviest Build 37 | 13 20 27 37 Greatest Support 20 | 20 20 20 20 Greatest Overweight (x) 3 | . 1 2 3 Average Overweight (x) . | . . . 1 Largest Inventory Capacity 15 | 8 10 10 15 Average Capacity 10 | 7 8 10 14 Most Carried 10 | 6 10 10 10 Average Carried 7 | 3 7 9 7 Final Capacity 15 | 8 10 10 15 Final Carried 10 | 6 10 10 6 Class Distribution -------------------- 69% | Mutant 30% | Scavenger-Mutant Dominant Class ---------------- Mutant | -10/Materials Scavenger-Mutant | -9/Materials Mutant | -8/Materials Resources | -11 -10 -9 -8 ----------- Run | Yrd Mat Mat Mat Matter Collected 951 | 321 283 217 130 Remotely . | . . . . Salvage Created 1309 | 220 301 456 332 Parts 95 | 13 25 41 16 Haulers Intercepted 2 | . 1 1 . Recyclers Shooed 2 | . . 2 . Parts Field Recycled . | . . . . Retrieved Matter . | . . . . Parts Self-Destructed . | . . . . Prevented . | . . . . Kills | -11 -10 -9 -8 ------- Run | Yrd Mat Mat Mat Combat Hostiles Destroyed 27 | . 9 9 9 Guns 23 | . 9 7 7 Cannons 3 | . . 1 2 AOE 1 | . . 1 . Classes Destroyed 9 | 3 4 2 . Worker 2 | 2 . . . Builder 3 | . . 3 . Tunneler 5 | 5 . . . Hauler 2 | . 1 1 . Recycler 1 | 1 . . . Watcher 2 | . 1 1 . Swarmer 10 | . 6 . 4 Grunt 14 | . 3 7 4 Sentry 3 | . . 2 1 Best Kill Streak 8 | 5 4 8 4 Combat Bots Only 5 | . 3 5 4 Max Kills in Single Turn 2 | 2 2 2 1 Gunslinging 1 | . 1 . . Exploded 1 | . . 1 . Melee . | . . . . Uniques/NPCs Destroyed . | . . . . Combat | -11 -10 -9 -8 -------- Run | Yrd Mat Mat Mat Hostile Shots Fired 209 | . 50 36 123 Missed 50 | . 14 10 26 Hits 159 | . 36 26 97 Projectile 159 | . 36 26 97 Critical Strikes 6 | . . . 6 Damage Taken 2125 | . 330 424 1371 Core 477 | . 56 93 328 Absorbed by Shields . | . . . . Regen/Repaired (Parts) 33 | . . . 33 Core Remaining (%) 84 | 100 77 76 . Volleys Fired 106 | 16 26 31 33 Largest 2 | 2 2 2 2 Hottest 133 | 100 100 133 133 Shots Fired 197 | 32 46 61 58 Gun 177 | 32 40 56 49 Cannon 13 | . . 4 9 Launcher . | . . . . Special 7 | . 6 1 . Kinetic 19 | . . 19 . Thermal 178 | 32 46 42 58 Explosive . | . . . . Electromagnetic . | . . . . Robot Hit Streak 13 | 7 4 9 13 Robot Miss Streak 5 | 2 3 3 5 Penetration Max . | . . . . Secondary Targets 4 | . 3 . 1 Max Gunslinging Chain 1 | . 1 . 1 Shots Hit Robots 113 | 17 23 37 36 Core Hits 62 | 9 15 20 18 Critical Kills . | . . . . Critical Parts Destroyed . | . . . . Critical Strikes 6 | 1 . 2 3 Burn 6 | 1 . 2 3 Melee Attacks 4 | . 4 . . Impact . | . . . . Slashing . | . . . . Piercing . | . . . . Sneak Attacks . | . . . . Combat Hostiles . | . . . . Follow-up Attacks . | . . . . Damage Inflicted 1965 | 226 303 768 668 Guns 1614 | 226 289 534 565 Cannons 164 | . . 61 103 Explosions 167 | . . 167 . Melee . | . . . . Ramming 20 | . 14 6 . Kinetic 266 | . . 266 . Thermal 1512 | 226 289 329 668 Explosive 167 | . . 167 . Electromagnetic . | . . . . Impact . | . . . . Slashing . | . . . . Piercing . | . . . . Highest Corruption 3 | . 3 1 . Average Corruption 1 | . 2 1 . Corruption Purged . | . . . . Corruption Blocked . | . . . . Effects 5 | . 2 3 . Matter Fused 3 | . 2 1 . Energy Discharges 1 | . . 1 . Data Loss (major) 1 | . . 1 . Overload Shots . | . . . . Overflow Damage . | . . . . Projectiles . | . . . . Explosions . | . . . . Melee . | . . . . Knockbacks . | . . . . Impact . | . . . . Kinetic . | . . . . Secondary . | . . . . Self-Inflicted Damage 93 | . 6 87 . Shots 1 | . . 1 . Rammed 4 | . 2 2 . Targets Rammed 4 | . 2 2 . Kicked . | . . . . Crushed . | . . . . Highest Temperature 470 | 170 243 174 470 Average Temperature 101 | 63 68 46 164 Received Heat Transfer 915 | . 66 138 711 Effects 6 | . . . 6 Shutdowns 1 | . . . 1 Interference 3 | . . . 3 Damage (minor) 2 | . . . 2 Siege Activations . | . . . . Martial Activations . | . . . . Shielding Activations . | . . . . Robots Disrupted . | . . . . Combat Hostiles . | . . . . Robots Corrupted . | . . . . Combat Hostiles . | . . . . Parts Fried . | . . . . Impact Corruptions . | . . . . Robots Melted . | . . . . Combat Hostiles . | . . . . Parts Melted 10 | 2 2 2 4 Heat Transferred 4255 | 740 851 962 1702 Parts Sabotaged . | . . . . Parts Stolen . | . . . . Parts Stripped . | . . . . Power Chain Reactions . | . . . . Alert | -11 -10 -9 -8 ------- Run | Yrd Mat Mat Mat Maximum Alert Level 1 | . . 1 . Low Security (%) 98 | 100 100 96 100 Level 1 1 | . . 3 . Level 2 . | . . . . Level 3 . | . . . . Level 4 . | . . . . Level 5 . | . . . . High Security . | . . . . Max Security . | . . . . Peak Influence 211 | 10 141 211 150 Initial 81 | . . 55 81 Average 66 | 1 55 76 105 Influence Increases 994 | 40 300 380 274 Destroy 0b10 Robot/C 540 | . 180 180 180 Destroy 0b10 Robot/NC 75 | 40 10 25 . Destroy Leader 118 | . 44 34 40 Successful Hack 26 | . 14 5 7 Disable Machine 45 | . . 45 . Destroy Structure 25 | . 7 16 2 Partial Spotted 30 | . 15 15 . Lose Combat Pursuer 135 | . 30 60 45 Influence Decreases 919 | 40 169 318 392 Entered New Map 188 | . . 76 112 Time Decay 541 | 40 149 222 130 Lost Part 190 | . 20 20 150 Squads Dispatched 6 | . 2 2 2 Investigation 3 | . 1 1 1 Extermination . | . . . . Reinforcement 3 | . 1 1 1 Assault . | . . . . Garrison . | . . . . Intercept . | . . . . Searches Triggered . | . . . . Construction Impeded . | . . . . Haulers Reinforced . | . . . . Active Scanning Responses . | . . . . Cargo Convoy Interrupts . | . . . . Stealth | -11 -10 -9 -8 --------- Run | Yrd Mat Mat Mat Distress Signals 3 | . . 1 2 Communications Jammed . | . . . . Distress Signals . | . . . . Times Spotted 60 | . 16 24 20 Peak Tracking Total 8 | . 4 7 8 Tactical Retreats 9 | . 1 3 5 Traps | -11 -10 -9 -8 ------- Run | Yrd Mat Mat Mat Traps Triggered 2 | . 2 . . Indirectly . | . . . . Trap Hack Attempts . | . . . . Triggered . | . . . . Disarmed . | . . . . Reprogrammed . | . . . . Reused . | . . . . Traps Extracted . | . . . . Installed . | . . . . Triggered . | . . . . Machines | -11 -10 -9 -8 ---------- Run | Yrd Mat Mat Mat Machines Disabled 3 | . . 3 . Max in Single Turn 1 | . . 1 . Machines Repaired . | . . . . Machines Dismantled . | . . . . Machines Sabotaged . | . . . . Overloaded Fab Kills . | . . . . Hacking | -11 -10 -9 -8 --------- Run | Yrd Mat Mat Mat Machines Accessed 9 | . 5 3 1 Terminals 6 | . 4 2 . Fabricators . | . . . . Repair Stations 1 | . . . 1 Recycling Units 1 | . 1 . . Scanalyzers 1 | . . 1 . Garrison Access . | . . . . Total Hacks 31 | . 14 12 5 Successful 18 | . 9 5 4 Failed 13 | . 5 7 1 Catastrophic 3 | . 2 1 . Database Lockouts . | . . . . Manual . | . . . . Terminals 18 | . 11 7 . Fabricators . | . . . . Repair Stations 5 | . . . 5 Recycling Units 3 | . 3 . . Scanalyzers 5 | . . 5 . Garrison Access . | . . . . Terminal Hacks 8 | . 7 1 . Prototype ID Bank 1 | . . 1 . Locate Traps 2 | . 2 . . Dispatch Records 1 | . 1 . . Maintenance Status 1 | . 1 . . Hauler Manifests 2 | . 2 . . Zone Layout 1 | . 1 . . Fabricator Hacks . | . . . . Repair Station Hacks 4 | . . . 4 Scan Component 2 | . . . 2 Repair 2 | . . . 2 Recycling Unit Hacks 2 | . 2 . . Report Inventory 1 | . 1 . . Retrieve Components 1 | . 1 . . Scanalyzer 4 | . . 4 . Insert Component 2 | . . 2 . Analyze 2 | . . 2 . Garrison Access Hacks . | . . . . Unauthorized Hacks . | . . . . Terminals . | . . . . Fabricators . | . . . . Repair Stations . | . . . . Recycling Units . | . . . . Scanalyzers . | . . . . Garrison Access . | . . . . Data Cores Recovered . | . . . . Used . | . . . . Hacking Detections 7 | . 3 3 1 Full Trace Events 5 | . 2 2 1 Feedback Events . | . . . . Feedback Blocked . | . . . . Robot Schematics Acquired . | . . . . Robots Built . | . . . . Authchips . | . . . . Time . | . . . . Total Robot Build Rating . | . . . . Part Schematics Acquired 2 | . . 2 . Parts Built . | . . . . Authchips . | . . . . Time . | . . . . Total Part Build Rating . | . . . . Parts Repaired 2 | . . . 2 Time 83 | . . . 83 Parts Recycled . | . . . . Recycled Matter . | . . . . Retrieved Matter . | . . . . Retrieved Components 3 | . 3 . . Parts Scanalyzed 2 | . . 2 . Part Schematics Acquired 2 | . . 2 . Parts Damaged . | . . . . Bothacking | -11 -10 -9 -8 ------------ Run | Yrd Mat Mat Mat Used RIF Installer . | . . . . Robots Hacked 1 | . 1 . . Non-combat . | . . . . Combat 1 | . 1 . . Robot Hacks Applied 1 | . 1 . . parse_system 1 | . 1 . . Relay Couplers Released . | . . . . Fabnet Peak Effective % . | . . . . Robots Rewired . | . . . . Allies Hacked . | . . . . Hacks Repelled . | . . . . Allies | -11 -10 -9 -8 -------- Run | Yrd Mat Mat Mat Total Allies . | . . . . Largest Group . | . . . . Highest-Rated Group . | . . . . Highest-Rated Ally . | . . . . Total Orders . | . . . . Ally Attacks . | . . . . Total Damage . | . . . . Kills . | . . . . Allies Corrupted . | . . . . Allies Melted . | . . . . Intel | -11 -10 -9 -8 ------- Run | Yrd Mat Mat Mat Active Infowar (turns) 872 | 135 295 288 154 Sensors 177 | . . 76 101 Terrain 56 | 56 . . . Seismic 374 | 79 295 . . ECM 324 | . . 212 112 Robot Analysis Total . | . . . . Derelict Logs Recovered . | . . . . Drone Launches . | . . . . Drone Recoveries . | . . . . Exploration | -11 -10 -9 -8 ------------- Run | Yrd Mat Mat Mat Turns Passed 1292 | 165 378 476 273 Spaces Moved 847 | 117 302 356 72 Core 6 | 6 . . . Treads 5 | . . . 5 Legs 38 | . . . 38 Wheels 798 | 111 302 356 29 Hover . | . . . . Flight . | . . . . Fastest Speed 50 | 50 80 80 95 Average Speed 93 | 78 80 93 169 Slowest Speed 330 | 80 95 110 330 Overloaded Moves . | . . . . Propulsion Burnouts . | . . . . Robots Hopped . | . . . . Potential Cave-ins . | . . . . Cave-ins Triggered . | . . . . Exploration Rate (%) 25 | 5 63 27 7 Regions Visited 3 Branch Regions . Pre-discovered Areas . | . . . . Known Exits Taken 1 | . . 1 . Unknown Exits Taken 2 | 1 1 . . Scrap Searched . | . . . . Spaces Dug 5 | . 5 . . Terrain Destroyed 23 | . 6 17 . Melee . | . . . . Projectile 6 | . 6 . . AOE 17 | . . 17 . Terrain Rammed . | . . . . Walls Destroyed . | . . . . Machines Disabled . | . . . . Actions | -11 -10 -9 -8 --------- Run | Yrd Mat Mat Mat Total 1138 | 159 377 438 164 Wait 41 | . 5 5 31 Move 844 | 116 301 355 72 Hop . | . . . . Pick Up 53 | 16 15 11 11 Fast Attach 2 | . . 2 . Attach 26 | 7 2 2 15 Detach 1 | . . . 1 Swap 30 | 1 12 16 1 Drop 27 | 3 10 14 . Fire 106 | 16 26 31 33 Melee 4 | . 4 . . Ram 4 | . 2 2 . Kick . | . . . . Crush . | . . . . Escape Stasis . | . . . . Rewire . | . . . . Trap . | . . . . Miscellaneous . | . . . . Route ------- -11/Scrapyard -10/Materials (discovered 2 exits: *Mat x2) -9/Materials -8/Materials History --------- Turn | Location | Event 2 | -11/Scrapyard | Met Revision 17 45 | -11/Scrapyard | Discovered new exit (range 14) 166 | -11/Scrapyard | Entered Materials 298 | -10/Materials | Discovered new exit (range 6) 362 | -10/Materials | Build established: Mutant 485 | -10/Materials | Discovered new exit (range 13) 544 | -10/Materials | Entered another Materials area 544 | -9/Materials | Evolved 2 slots: Utility x2 1006 | -9/Materials | Discovered new exit (range 13) 1019 | -9/Materials | Identified exit to Materials 1020 | -9/Materials | Entered another Materials area 1020 | -8/Materials | Evolved 2 slots: Propulsion x1, Utility x1 1028 | -8/Materials | Repaired Imp. Medium Laser 1060 | -8/Materials | Repaired Particle Gun 1083 | -8/Materials | Build established: Scavenger-Mutant 1156 | -8/Materials | Lost 5 parts (1p2n1u1w) 1221 | -8/Materials | Core integrity fell below 50% 1253 | -8/Materials | Lost 6 parts (1p2n1u2w) 1293 | -8/Materials | Self-destructed Last Messages --------------- R-06 Scavenger destroyed. Lgt. Nuclear Core melted. G-47 Trooper destroyed. R-06 Scavenger collects Lgt. Assault Rifle. Acquired Lgt. Ion Engine. R-06 Scavenger collects Particle Gun. Acquired 20 matter. R-06 Scavenger collects Heat Sink. R-06 Scavenger collects Com. Wheel. K-01 Serf collects debris. Acquired Aluminum Leg. K-01 Serf collects debris. Acquired Lgt. Treads. Imp. Heat Sink destroyed. Acquired Recalibrator. Particle Gun destroyed. Aluminum Leg destroyed. Critical hit (Burn: +37). Acquired Recalibrator. Lgt. Ion Engine destroyed. Map ----- +----------------------------------------------------+ | ???????##+## %#########+####????? | | ?????? #????? | | ?????? #????? | | ?????? #????? | | ?????????###########%%######????? | | ???????????????????# #?????????? | | ???????????????????# #?????????? | | ???????????????????# #?????????? | | ???????????????????#% #?????????? | | ???????????????????# #?????????? | | ???????????????????# #?????????? | | ???????????????????# #?????????? | | ???????????????????# #?????????? | | ???????????????????# #?????????? | | ???????????????????# #?????????? | | ???????????????????# #?????????? | | ???????????????????# #?????????? | | ???????????????????# #?????????? | | ?????#?????????????# #?????????? | | ?????# ###########% #?????????? | | ????## == % #?????????? | | ??? + !*% #?????????? | | ?????# ![% ##????????? | | ?????### ###T####### T#????????? | | ???????????????????# #####?????? | | ???????????????????# g @#?????? | | ???????????????????# g !!#?????? | | ???????????????????# g //#?????? | | ???????????????????# //#?????? | | ???????????????????+ //#?????? | | ???????????????????# //#?????? | | ???????????????????# #####?????? | | ???????????????????# #?????????? | | ???????????????????#^^#?????????? | | ???????????????????+ #?????????? | | ???????????????????# #?????????? | | ???????????????????# #?????????? | | ???????????????????# #?????????? | | ???????????????????# ??????????? | | ???????????????????+ ??????????? | | ???????????????????? ??????????? | | ????????????????????????????????? | | ????????????????????????????????? | | ????????????????????????????????? | | ????????????????????????????????? | | ????????????????????????????????? | | ????????????????????????????????? | | ????????????????????????????????? | | ????????????????????????????????? | | ????????????????????????????????? | +----------------------------------------------------+ Best States ------------- Heat Dissipation 45 Energy Generation 14 Energy Capacity 280 Matter Stores 300 Matter Capacity 300 Sight Range 16 Robot Scan Range 14 Terrain Scan Range 16 Terrain Scan Density 10 ECM Strength 1 Armor Coverage 150 Evasion (%) 44 Targeting Accuracy 5 Recoil Reduction 1 Item Schematics ----------------- Mining Laser | -9/Materials | Scanalyzed Lgt. Cannon | -9/Materials | Scanalyzed Robot Schematics ------------------ None Fabricated ------------ Nothing Repaired ---------- Particle Gun | 56% | -8/Materials Alien Tech Used ----------------- None Achievements -------------- None Challenges ------------ None Game ------ Seed IntegrityRemoteTearclaws Manual? 0 Play Time 00:25:08 Cumulative 8.4 hours Start 2025.08.13 @ 08:47:22 End 2025.08.13 @ 09:12:27 Sessions 1 Manual Loads 0 Difficulty Rogue Special Mode None Game No. 13 Rogue 13 Adventurer 0 Explorer 0 Win Type - Total 0 Types 0/0/0/0/0/0/0/0/0/0 Lore% 7 Gallery% 13 Achievement% 12 Wizard Run 0 Options --------- Layout 1 ASCII 0 Keyboard 0 Movement Mouse Keybinds 0 Fullscreen 1 Font 24/Smallcaps Map View 50x35 Zoom Use 0% Tactical HUD 0 Map Filters NONE Filters NONE Steam 1 RUN: 5df9c4da-39b4-46b1-bbad-4a5d3f0dc2a6